[Event "Live Chess"]
[Site "Chess.com"]
[Date "2024.06.01"]
[Round "-"]
[White "Bradfield133"]
[Black "DoctorMantisTobogganMD"]
[Result "0-1"]
[WhiteElo "1908"]
[BlackElo "2169"]
[TimeControl "300"]
[EndTime "13:27:53 PDT"]
[Termination "DoctorMantisTobogganMD won on time"]

1. c4 {[%clk 0:04:57.1]} 1... Nf6 {[%clk 0:04:58.9]} 2. g3 {[%clk 0:04:56.1]}
2... Nc6 {[%clk 0:04:58.8]} 3. Bg2 {[%clk 0:04:54.8]} 3... e5 {[%clk 0:04:58.7]}
4. Nc3 {[%clk 0:04:52.7]} 4... Bc5 {[%clk 0:04:58.3]} 5. e3 {[%clk 0:04:50.7]}
5... O-O {[%clk 0:04:57.3]} 6. Nge2 {[%clk 0:04:49.6]} 6... d6 {[%clk
0:04:56.7]} 7. O-O {[%clk 0:04:48.4]} 7... a6 {[%clk 0:04:56.1]} 8. h3 {[%clk
0:04:40.8]} 8... Bf5 {[%clk 0:04:53.8]} 9. d3 {[%clk 0:04:39.7]} 9... h6 {[%clk
0:04:50.8]} 10. a3 {[%clk 0:04:37.6]} 10... Ba7 {[%clk 0:04:49.7]} 11. f4 {[%clk
0:04:30.1]} 11... exf4 {[%clk 0:04:46.6]} 12. Nxf4 {[%clk 0:04:27.2]} 12... Re8
{[%clk 0:04:39.9]} 13. Nfd5 {[%clk 0:03:44.5]} 13... Nxd5 {[%clk 0:04:35.4]} 14.
Nxd5 {[%clk 0:03:37.6]} 14... Bg6 {[%clk 0:04:33.8]} 15. d4 {[%clk 0:03:29.4]}
15... Rb8 {[%clk 0:04:16.8]} 16. b4 {[%clk 0:03:25.6]} 16... Ne7 {[%clk
0:04:13.6]} 17. Nf4 {[%clk 0:03:07.6]} 17... Bh7 {[%clk 0:04:09.3]} 18. Bd5
{[%clk 0:02:55.9]} 18... Nxd5 {[%clk 0:04:07.1]} 19. Nxd5 {[%clk 0:02:54.8]}
19... c6 {[%clk 0:04:04.7]} 20. Nf4 {[%clk 0:02:53]} 20... Qg5 {[%clk
0:04:02.1]} 21. Qf3 {[%clk 0:02:48.6]} 21... Be4 {[%clk 0:03:58.4]} 22. Qf2
{[%clk 0:02:47.1]} 22... Re7 {[%clk 0:03:49.9]} 23. Bd2 {[%clk 0:02:40.8]} 23...
Rbe8 {[%clk 0:03:46.5]} 24. Rae1 {[%clk 0:02:38.8]} 24... d5 {[%clk 0:03:43.9]}
25. cxd5 {[%clk 0:02:17.8]} 25... cxd5 {[%clk 0:03:40.8]} 26. Rc1 {[%clk
0:02:04.5]} 26... Bb8 {[%clk 0:03:37.2]} 27. Rc3 {[%clk 0:01:48.8]} 27... Bd6
{[%clk 0:03:09.6]} 28. Rfc1 {[%clk 0:01:41.8]} 28... Kh7 {[%clk 0:03:06.4]} 29.
Kh2 {[%clk 0:01:32.1]} 29... Qf6 {[%clk 0:02:59.8]} 30. Nd3 {[%clk 0:01:11.8]}
30... Qg6 {[%clk 0:02:37.9]} 31. Nf4 {[%clk 0:01:08.1]} 31... Qf5 {[%clk
0:02:33.3]} 32. Rf1 {[%clk 0:00:38.3]} 32... g5 {[%clk 0:02:28.1]} 33. Ng2
{[%clk 0:00:35.8]} 33... Qg6 {[%clk 0:02:24]} 34. Qf6 {[%clk 0:00:30.7]} 34...
Qxf6 {[%clk 0:02:18.1]} 35. Rxf6 {[%clk 0:00:29.2]} 35... Re6 {[%clk 0:02:17.7]}
36. Rxe6 {[%clk 0:00:26.3]} 36... Rxe6 {[%clk 0:02:16.1]} 37. Rc8 {[%clk
0:00:20.8]} 37... Kg7 {[%clk 0:02:13.6]} 38. Rd8 {[%clk 0:00:16.3]} 38... h5
{[%clk 0:02:08.3]} 39. Rd7 {[%clk 0:00:12.3]} 39... h4 {[%clk 0:02:04.8]} 40.
Be1 {[%clk 0:00:08.7]} 40... b5 {[%clk 0:01:59.1]} 41. Rxd6 {[%clk 0:00:04.6]}
41... Rxd6 {[%clk 0:01:57.4]} 42. gxh4 {[%clk 0:00:03.6]} 42... Bxg2 {[%clk
0:01:56.7]} 43. Kxg2 {[%clk 0:00:02.2]} 43... Kg6 {[%clk 0:01:55.3]} 44. hxg5
{[%clk 0:00:00.3]} 44... Kxg5 {[%clk 0:01:54.6]} 0-1

[Event "Live Chess"]
[Site "Chess.com"]
[Date "2024.06.01"]
[Round "-"]
[White "Pandreq"]
[Black "missedJariChance"]
[Result "0-1"]
[WhiteElo "1136"]
[BlackElo "1345"]
[TimeControl "300"]
[EndTime "13:27:58 PDT"]
[Termination "missedJariChance won by checkmate"]

1. d4 {[%clk 0:04:58.2]} 1... d5 {[%clk 0:04:54.4]} 2. c4 {[%clk 0:04:57.6]}
2... e6 {[%clk 0:04:52.4]} 3. Nc3 {[%clk 0:04:55.5]} 3... Nf6 {[%clk 0:04:49.9]}
4. cxd5 {[%clk 0:04:54.1]} 4... exd5 {[%clk 0:04:45.6]} 5. Bg5 {[%clk
0:04:52.5]} 5... Be7 {[%clk 0:04:42.5]} 6. e3 {[%clk 0:04:51.7]} 6... O-O {[%clk
0:04:39.5]} 7. Nf3 {[%clk 0:04:49.9]} 7... c5 {[%clk 0:04:37.5]} 8. Bd3 {[%clk
0:04:46.2]} 8... cxd4 {[%clk 0:04:34]} 9. Nxd4 {[%clk 0:04:45]} 9... Qb6 {[%clk
0:04:20.4]} 10. Qc2 {[%clk 0:04:39.4]} 10... g6 {[%clk 0:04:11.8]} 11. Bxf6
{[%clk 0:04:31.8]} 11... Bxf6 {[%clk 0:04:09.5]} 12. Nxd5 {[%clk 0:04:30.5]}
12... Qd6 {[%clk 0:04:06.2]} 13. Nxf6+ {[%clk 0:04:26.9]} 13... Qxf6 {[%clk
0:04:04.5]} 14. O-O {[%clk 0:04:21]} 14... Nc6 {[%clk 0:04:01.1]} 15. Nxc6
{[%clk 0:04:12.3]} 15... bxc6 {[%clk 0:03:59.2]} 16. Rac1 {[%clk 0:04:08.1]}
16... Bd7 {[%clk 0:03:54.7]} 17. Be4 {[%clk 0:04:02.8]} 17... Rac8 {[%clk
0:03:51.4]} 18. Qc3 {[%clk 0:03:49]} 18... Qxc3 {[%clk 0:03:46.4]} 19. Rxc3
{[%clk 0:03:47.8]} 19... c5 {[%clk 0:03:45.1]} 20. Rfc1 {[%clk 0:03:44.8]} 20...
Rfd8 {[%clk 0:03:34.5]} 21. Rxc5 {[%clk 0:03:31.6]} 21... Rxc5 {[%clk
0:03:32.6]} 22. Rxc5 {[%clk 0:03:30.6]} 22... Bf5 {[%clk 0:03:29.8]} 23. Rd5
{[%clk 0:03:19.9]} 23... Rc8 {[%clk 0:03:23.4]} 24. Kf1 {[%clk 0:02:37.8]} 24...
Bxe4 {[%clk 0:03:19.6]} 25. Rd4 {[%clk 0:02:36.5]} 25... Bf5 {[%clk 0:03:16.9]}
26. e4 {[%clk 0:02:30.2]} 26... Be6 {[%clk 0:03:15.1]} 27. b3 {[%clk 0:02:26.3]}
27... Rc2 {[%clk 0:03:13]} 28. Ra4 {[%clk 0:02:19.4]} 28... Kg7 {[%clk 0:03:07]}
29. Rxa7 {[%clk 0:02:17.6]} 29... h5 {[%clk 0:03:02.7]} 30. f3 {[%clk 0:02:12]}
30... Rb2 {[%clk 0:03:00.6]} 31. h3 {[%clk 0:01:59.1]} 31... Kf6 {[%clk
0:02:56.4]} 32. g4 {[%clk 0:01:56.1]} 32... Kg5 {[%clk 0:02:53]} 33. a4 {[%clk
0:01:50.1]} 33... Kf4 {[%clk 0:02:50.1]} 34. a5 {[%clk 0:01:48.6]} 34... Kxf3
{[%clk 0:02:48.3]} 35. Ke1 {[%clk 0:01:45.5]} 35... Ke3 {[%clk 0:02:40.1]} 36.
a6 {[%clk 0:01:41.8]} 36... Rb1# {[%clk 0:02:37.6]} 0-1

[Event "Live Chess"]
[Site "Chess.com"]
[Date "2024.06.01"]
[Round "-"]
[White "Zhevzh1k7"]
[Black "jimwad"]
[Result "0-1"]
[WhiteElo "1099"]
[BlackElo "1279"]
[TimeControl "300"]
[EndTime "13:28:09 PDT"]
[Termination "jimwad won by resignation"]

1. e4 {[%clk 0:04:58.9]} 1... e5 {[%clk 0:04:59]} 2. Nf3 {[%clk 0:04:56.7]} 2...
Nc6 {[%clk 0:04:57.2]} 3. Bc4 {[%clk 0:04:55.3]} 3... Bc5 {[%clk 0:04:55.3]} 4.
O-O {[%clk 0:04:53.7]} 4... Nf6 {[%clk 0:04:54.3]} 5. d4 {[%clk 0:04:52.6]} 5...
Nxd4 {[%clk 0:04:48.8]} 6. Nxe5 {[%clk 0:04:48.6]} 6... O-O {[%clk 0:04:42.7]}
7. Nxf7 {[%clk 0:04:39.2]} 7... Rxf7 {[%clk 0:04:41]} 8. Bxf7+ {[%clk
0:04:29.9]} 8... Kxf7 {[%clk 0:04:39.7]} 9. c3 {[%clk 0:04:19.9]} 9... Nc6
{[%clk 0:04:36]} 10. Bg5 {[%clk 0:04:10.4]} 10... Be7 {[%clk 0:04:33.1]} 11.
Qb3+ {[%clk 0:04:08.5]} 11... Kf8 {[%clk 0:04:31.2]} 12. Nd2 {[%clk 0:04:02.4]}
12... d6 {[%clk 0:04:24]} 13. f4 {[%clk 0:03:43]} 13... h6 {[%clk 0:04:22.4]}
14. Bxf6 {[%clk 0:03:41.6]} 14... Bxf6 {[%clk 0:04:21.2]} 15. e5 {[%clk
0:03:37.9]} 15... dxe5 {[%clk 0:04:17]} 16. fxe5 {[%clk 0:03:37.1]} 16... Nxe5
{[%clk 0:04:10.4]} 17. Qb4+ {[%clk 0:03:26.8]} 17... Kg8 {[%clk 0:04:05.3]} 18.
Qb3+ {[%clk 0:03:20.9]} 18... Kh8 {[%clk 0:04:03.9]} 19. Ne4 {[%clk 0:03:14.3]}
19... Bg5 {[%clk 0:03:51.3]} 20. Rad1 {[%clk 0:02:48.9]} 20... Be3+ {[%clk
0:03:31.4]} 21. Kh1 {[%clk 0:02:46.6]} 21... Qg8 {[%clk 0:03:24]} 22. Qxg8+
{[%clk 0:02:31.4]} 22... Kxg8 {[%clk 0:03:22.7]} 23. Rd8+ {[%clk 0:02:26.6]}
23... Kh7 {[%clk 0:03:21.7]} 24. Re8 {[%clk 0:02:13.4]} 24... Nc4 {[%clk
0:03:01.5]} 25. b3 {[%clk 0:01:57.5]} 25... Nd2 {[%clk 0:02:59.4]} 26. Nxd2
{[%clk 0:01:41.9]} 26... Bxd2 {[%clk 0:02:58]} 27. c4 {[%clk 0:01:36]} 27... b6
{[%clk 0:02:55.9]} 28. Rff8 {[%clk 0:01:29.4]} 28... Bb4 {[%clk 0:02:47.5]} 29.
Rxc8 {[%clk 0:01:26.1]} 29... Bxf8 {[%clk 0:02:45.5]} 30. Rxa8 {[%clk
0:01:24.4]} 30... Bd6 {[%clk 0:02:42.7]} 31. Rxa7 {[%clk 0:01:23.1]} 31... Kg6
{[%clk 0:02:41]} 32. g4 {[%clk 0:01:21.2]} 32... Kg5 {[%clk 0:02:39.8]} 33. h3
{[%clk 0:01:18.9]} 33... h5 {[%clk 0:02:38.7]} 34. gxh5 {[%clk 0:01:17.1]} 34...
Kxh5 {[%clk 0:02:37.7]} 35. a4 {[%clk 0:01:14.9]} 35... g5 {[%clk 0:02:36.1]}
36. Kg2 {[%clk 0:01:14.2]} 36... Kh4 {[%clk 0:02:34.7]} 37. Ra8 {[%clk
0:01:11.1]} 37... g4 {[%clk 0:02:32]} 38. hxg4 {[%clk 0:01:07.9]} 38... Kxg4
{[%clk 0:02:30.7]} 39. Rg8+ {[%clk 0:01:06.9]} 39... Kf4 {[%clk 0:02:28.5]} 40.
Kf2 {[%clk 0:01:04.1]} 40... Ke4 {[%clk 0:02:27.5]} 41. Rg4+ {[%clk 0:01:01.8]}
41... Kd3 {[%clk 0:02:25.6]} 42. Rg3+ {[%clk 0:01:01.3]} 42... Kd4 {[%clk
0:02:23.7]} 43. Rg4+ {[%clk 0:00:56.1]} 43... Kc5 {[%clk 0:02:22.4]} 44. Ke3
{[%clk 0:00:52.5]} 44... Kb4 {[%clk 0:02:19.7]} 45. Rd4 {[%clk 0:00:47.9]} 45...
Bc5 {[%clk 0:02:17.1]} 46. Kd3 {[%clk 0:00:45.7]} 46... Bxd4 {[%clk 0:02:16]}
47. Kxd4 {[%clk 0:00:44.8]} 47... Kxb3 {[%clk 0:02:15.2]} 48. c5 {[%clk
0:00:41.4]} 48... Kxa4 {[%clk 0:02:07.4]} 49. cxb6 {[%clk 0:00:39.9]} 49... cxb6
{[%clk 0:02:06.6]} 50. Kc4 {[%clk 0:00:38.5]} 50... b5+ {[%clk 0:02:05.6]} 51.
Kc3 {[%clk 0:00:37.4]} 51... Ka3 {[%clk 0:02:04.9]} 52. Kc2 {[%clk 0:00:36.3]}
52... Ka2 {[%clk 0:02:02.5]} 53. Kc3 {[%clk 0:00:34.6]} 53... Ka3 {[%clk
0:02:01.5]} 54. Kc2 {[%clk 0:00:33.6]} 54... b4 {[%clk 0:01:58.9]} 55. Kb1
{[%clk 0:00:32.2]} 55... Kb3 {[%clk 0:01:58.1]} 56. Ka1 {[%clk 0:00:31.4]} 56...
Kc2 {[%clk 0:01:56.2]} 57. Ka2 {[%clk 0:00:29.4]} 57... b3+ {[%clk 0:01:55]} 58.
Ka3 {[%clk 0:00:28.9]} 58... b2 {[%clk 0:01:54]} 59. Kb4 {[%clk 0:00:28.8]}
59... b1=Q+ {[%clk 0:01:52.5]} 60. Kc5 {[%clk 0:00:28.7]} 0-1

[Event "Live Chess"]
[Site "Chess.com"]
[Date "2024.06.01"]
[Round "-"]
[White "oscalik"]
[Black "ProfPoisson"]
[Result "1-0"]
[WhiteElo "2340"]
[BlackElo "1293"]
[TimeControl "300"]
[EndTime "13:28:11 PDT"]
[Termination "oscalik won by resignation"]

1. e4 {[%clk 0:04:56.5]} 1... e5 {[%clk 0:04:57.9]} 2. Nf3 {[%clk 0:04:53.7]}
2... Nf6 {[%clk 0:04:57.4]} 3. Nc3 {[%clk 0:04:51.3]} 3... Nc6 {[%clk
0:04:54.4]} 4. d4 {[%clk 0:04:49.2]} 4... exd4 {[%clk 0:04:52.1]} 5. Nxd4 {[%clk
0:04:49.1]} 5... Nxe4 {[%clk 0:04:50.6]} 6. Nxe4 {[%clk 0:04:37.8]} 6... Qe7
{[%clk 0:04:50.5]} 7. f3 {[%clk 0:04:23.2]} 7... Qd8 {[%clk 0:04:50.4]} 8. Nxc6
{[%clk 0:04:20.4]} 8... Qe7 {[%clk 0:04:50.3]} 9. Nxe7 {[%clk 0:04:19]} 9...
Bxe7 {[%clk 0:03:44]} 10. Bg5 {[%clk 0:04:12.5]} 10... Bxg5 {[%clk 0:03:21.9]}
11. Nxg5 {[%clk 0:04:12.4]} 11... O-O {[%clk 0:03:19.7]} 12. Bd3 {[%clk
0:04:11.2]} 1-0

[Event "Live Chess"]
[Site "Chess.com"]
[Date "2024.06.01"]
[Round "-"]
[White "booktrunk"]
[Black "Stanbad1"]
[Result "0-1"]
[WhiteElo "1397"]
[BlackElo "2652"]
[TimeControl "300"]
[EndTime "13:28:13 PDT"]
[Termination "Stanbad1 won by resignation"]

1. d4 {[%clk 0:04:55.6]} 1... Nf6 {[%clk 0:04:58.7]} 2. Nc3 {[%clk 0:04:52.3]}
2... d5 {[%clk 0:04:57]} 3. Bf4 {[%clk 0:04:49]} 3... a6 {[%clk 0:04:54.1]} 4.
a3 {[%clk 0:04:33.6]} 4... e6 {[%clk 0:04:52.4]} 5. e3 {[%clk 0:04:32.1]} 5...
c5 {[%clk 0:04:51.3]} 6. dxc5 {[%clk 0:04:30.1]} 6... Bxc5 {[%clk 0:04:51.2]} 7.
Nf3 {[%clk 0:04:27.5]} 7... Nbd7 {[%clk 0:04:49.6]} 8. h3 {[%clk 0:04:25.4]}
8... b5 {[%clk 0:04:48.2]} 9. Be2 {[%clk 0:04:23]} 9... Bb7 {[%clk 0:04:45.2]}
10. O-O {[%clk 0:04:20]} 10... O-O {[%clk 0:04:41.4]} 11. b4 {[%clk 0:04:18.6]}
11... Bb6 {[%clk 0:04:39.3]} 12. Re1 {[%clk 0:04:04.8]} 12... Rc8 {[%clk
0:04:36.9]} 13. Na2 {[%clk 0:04:01.2]} 13... Ne4 {[%clk 0:04:33.5]} 14. Nd2
{[%clk 0:03:55]} 14... Ndf6 {[%clk 0:04:23]} 15. Nxe4 {[%clk 0:03:53]} 15...
Nxe4 {[%clk 0:04:22.9]} 16. Bd3 {[%clk 0:03:49.3]} 16... f5 {[%clk 0:04:09.5]}
17. Bxe4 {[%clk 0:03:43.8]} 17... dxe4 {[%clk 0:04:09.4]} 18. Qxd8 {[%clk
0:03:41.4]} 18... Rfxd8 {[%clk 0:04:06.4]} 19. Rad1 {[%clk 0:03:40.1]} 19... Bd5
{[%clk 0:04:04.9]} 20. Nc1 {[%clk 0:03:37.6]} 20... Rxc2 {[%clk 0:04:02.3]} 21.
Re2 {[%clk 0:03:33.3]} 21... Rdc8 {[%clk 0:04:00.3]} 22. Rxc2 {[%clk 0:03:31.7]}
22... Rxc2 {[%clk 0:04:00.2]} 23. g4 {[%clk 0:03:26.7]} 23... g6 {[%clk
0:03:52.8]} 24. gxf5 {[%clk 0:03:23.9]} 24... gxf5 {[%clk 0:03:52.7]} 25. Kg2
{[%clk 0:03:20.9]} 25... Kf7 {[%clk 0:03:50.4]} 26. Kg3 {[%clk 0:03:18.7]} 26...
Bd8 {[%clk 0:03:47.7]} 27. h4 {[%clk 0:03:16.8]} 27... Bf6 {[%clk 0:03:44.9]}
28. Bd6 {[%clk 0:03:14.5]} 28... Bb2 {[%clk 0:03:42.2]} 29. Nd3 {[%clk
0:02:57.5]} 29... exd3 {[%clk 0:03:38.9]} 30. Rxd3 {[%clk 0:02:57.4]} 30... Bc4
{[%clk 0:03:37.5]} 31. Rd1 {[%clk 0:02:54.5]} 31... Bxa3 {[%clk 0:03:36.2]} 32.
Bc5 {[%clk 0:02:52.2]} 32... a5 {[%clk 0:03:32.9]} 33. Rd7+ {[%clk 0:02:48.7]}
33... Ke8 {[%clk 0:03:30.2]} 34. Rxh7 {[%clk 0:02:45.7]} 34... Bxb4 {[%clk
0:03:27.5]} 35. Rh8+ {[%clk 0:02:44.4]} 35... Kf7 {[%clk 0:03:25.3]} 36. Bd4
{[%clk 0:02:41.9]} 36... Bc3 {[%clk 0:03:18]} 37. Rh7+ {[%clk 0:02:39.7]} 37...
Kg8 {[%clk 0:03:16.9]} 38. Rg7+ {[%clk 0:02:38.4]} 38... Kf8 {[%clk 0:03:16.3]}
39. Rd7 {[%clk 0:02:35.1]} 39... Bxd4 {[%clk 0:03:14.9]} 40. Rxd4 {[%clk
0:02:35]} 40... a4 {[%clk 0:03:14.5]} 41. h5 {[%clk 0:02:34.7]} 41... a3 {[%clk
0:03:13.2]} 42. h6 {[%clk 0:02:34.6]} 42... Rc1 {[%clk 0:03:11.4]} 43. Kg2
{[%clk 0:02:32]} 43... a2 {[%clk 0:03:09.6]} 44. h7 {[%clk 0:02:30.4]} 44... Kg7
{[%clk 0:03:03.6]} 45. Rd7+ {[%clk 0:02:28.8]} 45... Kh8 {[%clk 0:03:02]} 0-1

[Event "Live Chess"]
[Site "Chess.com"]
[Date "2024.06.01"]
[Round "-"]
[White "dl_chess"]
[Black "RichardABates"]
[Result "0-1"]
[WhiteElo "1182"]
[BlackElo "2238"]
[TimeControl "300"]
[EndTime "13:28:15 PDT"]
[Termination "RichardABates won on time"]

1. e4 {[%clk 0:04:56]} 1... c5 {[%clk 0:04:58.6]} 2. Nf3 {[%clk 0:04:53.6]} 2...
d6 {[%clk 0:04:57.3]} 3. d4 {[%clk 0:04:52.5]} 3... cxd4 {[%clk 0:04:56.2]} 4.
Nxd4 {[%clk 0:04:51.6]} 4... Nf6 {[%clk 0:04:55.2]} 5. Nc3 {[%clk 0:04:50.4]}
5... a6 {[%clk 0:04:54]} 6. Be3 {[%clk 0:04:42.7]} 6... e5 {[%clk 0:04:52.5]} 7.
Nb3 {[%clk 0:04:37.8]} 7... Be6 {[%clk 0:04:50.9]} 8. Nd5 {[%clk 0:04:24.8]}
8... Nbd7 {[%clk 0:04:43]} 9. Bd3 {[%clk 0:04:03.5]} 9... Nxd5 {[%clk
0:04:31.8]} 10. exd5 {[%clk 0:03:58.4]} 10... Bxd5 {[%clk 0:04:30.7]} 11. f3
{[%clk 0:03:46.2]} 11... Nf6 {[%clk 0:03:57.4]} 12. O-O {[%clk 0:03:40.4]} 12...
Be7 {[%clk 0:03:55.8]} 13. c4 {[%clk 0:03:30.7]} 13... Bc6 {[%clk 0:03:53.2]}
14. Qd2 {[%clk 0:03:18.1]} 14... O-O {[%clk 0:03:51.5]} 15. Na5 {[%clk
0:03:16.6]} 15... d5 {[%clk 0:03:43.1]} 16. Nxc6 {[%clk 0:03:15.1]} 16... bxc6
{[%clk 0:03:41.7]} 17. cxd5 {[%clk 0:02:57.2]} 17... cxd5 {[%clk 0:03:23]} 18.
Rac1 {[%clk 0:02:48.7]} 18... Qd7 {[%clk 0:03:12.6]} 19. Qe2 {[%clk 0:02:27.7]}
19... a5 {[%clk 0:03:04.8]} 20. Bb5 {[%clk 0:02:22.8]} 20... Qf5 {[%clk
0:02:53.9]} 21. a4 {[%clk 0:02:09.6]} 21... Rac8 {[%clk 0:02:49.8]} 22. Rxc8
{[%clk 0:02:06.3]} 22... Rxc8 {[%clk 0:02:47.9]} 23. Rc1 {[%clk 0:01:52.3]}
23... Rxc1+ {[%clk 0:02:42.5]} 24. Bxc1 {[%clk 0:01:50.9]} 24... Bc5+ {[%clk
0:02:40.4]} 25. Kh1 {[%clk 0:01:45.8]} 25... Qb1 {[%clk 0:02:37.1]} 26. Qd2
{[%clk 0:01:34.5]} 26... Bb4 {[%clk 0:02:33.1]} 27. Qe3 {[%clk 0:01:22.6]} 27...
d4 {[%clk 0:02:28.5]} 28. Qg1 {[%clk 0:00:14.1]} 28... Qc2 {[%clk 0:02:21.8]}
29. Bg5 {[%clk 0:00:07.6]} 29... Nd5 {[%clk 0:02:19.4]} 0-1

[Event "Live Chess"]
[Site "Chess.com"]
[Date "2024.06.01"]
[Round "-"]
[White "stevochess11"]
[Black "Delacorta"]
[Result "1/2-1/2"]
[WhiteElo "1710"]
[BlackElo "1566"]
[TimeControl "300"]
[EndTime "13:28:20 PDT"]
[Termination "Game drawn by repetition"]

1. d4 {[%clk 0:04:57.9]} 1... e6 {[%clk 0:04:58.5]} 2. Nf3 {[%clk 0:04:56.8]}
2... f5 {[%clk 0:04:58]} 3. Bg5 {[%clk 0:04:55.5]} 3... Nf6 {[%clk 0:04:57.4]}
4. e3 {[%clk 0:04:53.4]} 4... Be7 {[%clk 0:04:56.5]} 5. Nbd2 {[%clk 0:04:52.2]}
5... O-O {[%clk 0:04:55.1]} 6. Bd3 {[%clk 0:04:50.4]} 6... d5 {[%clk 0:04:54]}
7. c3 {[%clk 0:04:49.1]} 7... Ne4 {[%clk 0:04:52.5]} 8. Bxe7 {[%clk 0:04:46.5]}
8... Qxe7 {[%clk 0:04:50.1]} 9. Ne5 {[%clk 0:04:45.5]} 9... Nd7 {[%clk
0:04:47.3]} 10. O-O {[%clk 0:04:43.8]} 10... Nxe5 {[%clk 0:04:46.2]} 11. dxe5
{[%clk 0:04:42.9]} 11... Bd7 {[%clk 0:04:45.6]} 12. f4 {[%clk 0:04:41.7]} 12...
Be8 {[%clk 0:04:43.1]} 13. Nf3 {[%clk 0:04:39.4]} 13... Bh5 {[%clk 0:04:41.4]}
14. Be2 {[%clk 0:04:35.4]} 14... Qf7 {[%clk 0:04:17]} 15. Nd4 {[%clk 0:04:32.2]}
15... Bxe2 {[%clk 0:04:14.3]} 16. Qxe2 {[%clk 0:04:31.4]} 16... a6 {[%clk
0:04:07.1]} 17. Rf3 {[%clk 0:04:18.8]} 17... c5 {[%clk 0:04:05.5]} 18. Nc2
{[%clk 0:04:15.7]} 18... b5 {[%clk 0:03:57]} 19. Ne1 {[%clk 0:04:03.3]} 19...
Qb7 {[%clk 0:03:40.6]} 20. Rh3 {[%clk 0:03:55.2]} 20... g6 {[%clk 0:03:31.9]}
21. Nf3 {[%clk 0:03:49.5]} 21... a5 {[%clk 0:03:26.4]} 22. Qe1 {[%clk
0:03:41.4]} 22... Rf7 {[%clk 0:03:23]} 23. Qh4 {[%clk 0:03:28.7]} 23... Qe7
{[%clk 0:03:14.3]} 24. Qe1 {[%clk 0:03:02]} 24... Rc8 {[%clk 0:02:52.1]} 25. Rd1
{[%clk 0:02:52.9]} 25... c4 {[%clk 0:02:37.6]} 26. Nd4 {[%clk 0:02:50.1]} 26...
Qd7 {[%clk 0:02:33.9]} 27. Rf3 {[%clk 0:02:35.9]} 27... Nc5 {[%clk 0:02:30.2]}
28. h3 {[%clk 0:02:30.2]} 28... Nd3 {[%clk 0:02:29.2]} 29. Qe2 {[%clk
0:02:26.8]} 29... b4 {[%clk 0:02:22.6]} 30. g4 {[%clk 0:02:20.4]} 30... bxc3
{[%clk 0:02:11.3]} 31. bxc3 {[%clk 0:02:19.2]} 31... Rb8 {[%clk 0:02:10.1]} 32.
g5 {[%clk 0:02:12]} 32... Rb2 {[%clk 0:02:08.2]} 33. Rd2 {[%clk 0:02:10.3]}
33... Rb1+ {[%clk 0:02:06.5]} 34. Kg2 {[%clk 0:02:04.4]} 34... Rf8 {[%clk
0:01:51.3]} 35. Rf1 {[%clk 0:01:58.8]} 35... Rfb8 {[%clk 0:01:44.4]} 36. Rxb1
{[%clk 0:01:42.6]} 36... Rxb1 {[%clk 0:01:42.1]} 37. Rd1 {[%clk 0:01:40.9]}
37... Rb2 {[%clk 0:01:35.9]} 38. Rd2 {[%clk 0:01:39.8]} 38... Rxd2 {[%clk
0:01:28.6]} 39. Qxd2 {[%clk 0:01:38.5]} 39... Kf7 {[%clk 0:01:27.1]} 40. Kf1
{[%clk 0:01:29.1]} 40... Qa4 {[%clk 0:01:24.4]} 41. Ke2 {[%clk 0:01:23.5]} 41...
Qa3 {[%clk 0:01:16.8]} 42. Nb5 {[%clk 0:01:09.6]} 42... Qc1 {[%clk 0:01:02]} 43.
Qxc1 {[%clk 0:00:46.8]} 43... Nxc1+ {[%clk 0:01:00.5]} 44. Kd2 {[%clk
0:00:45.5]} 44... Nxa2 {[%clk 0:00:58.1]} 45. Nd6+ {[%clk 0:00:43.1]} 45... Ke7
{[%clk 0:00:50.7]} 46. Kc2 {[%clk 0:00:42.4]} 46... Kd7 {[%clk 0:00:38]} 47. Kb2
{[%clk 0:00:40.9]} 47... Nb4 {[%clk 0:00:30.7]} 48. cxb4 {[%clk 0:00:39.8]}
48... axb4 {[%clk 0:00:30]} 49. Nb5 {[%clk 0:00:37.4]} 49... Kc6 {[%clk
0:00:26.6]} 50. Nd4+ {[%clk 0:00:36.5]} 50... Kc5 {[%clk 0:00:25]} 51. Nxe6+
{[%clk 0:00:35.6]} 51... Kb5 {[%clk 0:00:23]} 52. Nc7+ {[%clk 0:00:33.5]} 52...
Kc5 {[%clk 0:00:22.1]} 53. e6 {[%clk 0:00:32.4]} 53... c3+ {[%clk 0:00:20.9]}
54. Kc2 {[%clk 0:00:31.3]} 54... Kc4 {[%clk 0:00:19.8]} 55. e7 {[%clk
0:00:29.4]} 55... b3+ {[%clk 0:00:19.7]} 56. Kb1 {[%clk 0:00:28.2]} 56... c2+
{[%clk 0:00:18.8]} 57. Kc1 {[%clk 0:00:27.4]} 57... Kc3 {[%clk 0:00:17.8]} 58.
Nxd5+ {[%clk 0:00:25.4]} 58... Kd3 {[%clk 0:00:14.6]} 59. Nb4+ {[%clk
0:00:19.4]} 59... Kc3 {[%clk 0:00:12.1]} 60. Nd5+ {[%clk 0:00:16.3]} 60... Kd3
{[%clk 0:00:06.4]} 61. Nb4+ {[%clk 0:00:15.4]} 61... Kc3 {[%clk 0:00:05.9]} 62.
Nd5+ {[%clk 0:00:14.5]} 1/2-1/2

[Event "Live Chess"]
[Site "Chess.com"]
[Date "2024.06.01"]
[Round "-"]
[White "bonantagulo"]
[Black "CCGoodKnightRookie"]
[Result "0-1"]
[WhiteElo "2048"]
[BlackElo "2269"]
[TimeControl "300"]
[EndTime "13:28:27 PDT"]
[Termination "CCGoodKnightRookie won by checkmate"]

1. d4 {[%clk 0:04:54.7]} 1... d5 {[%clk 0:04:56.7]} 2. c4 {[%clk 0:04:49.5]}
2... e6 {[%clk 0:04:55.7]} 3. Nf3 {[%clk 0:04:48.8]} 3... Nf6 {[%clk 0:04:54.2]}
4. Nc3 {[%clk 0:04:48.3]} 4... c5 {[%clk 0:04:53.4]} 5. cxd5 {[%clk 0:04:47.5]}
5... exd5 {[%clk 0:04:53]} 6. g3 {[%clk 0:04:46.5]} 6... Nc6 {[%clk 0:04:52.1]}
7. Bg2 {[%clk 0:04:45.4]} 7... cxd4 {[%clk 0:04:50.8]} 8. Nxd4 {[%clk
0:04:44.5]} 8... Bc5 {[%clk 0:04:50.2]} 9. Nb3 {[%clk 0:04:36.3]} 9... Bb6
{[%clk 0:04:41.4]} 10. Nxd5 {[%clk 0:04:30.5]} 10... Be6 {[%clk 0:04:38.9]} 11.
Nxb6 {[%clk 0:04:20.3]} 11... Qxd1+ {[%clk 0:04:32.5]} 12. Kxd1 {[%clk
0:04:16.2]} 12... axb6 {[%clk 0:04:32.4]} 13. Nd2 {[%clk 0:03:27.5]} 13... O-O
{[%clk 0:04:24.1]} 14. b3 {[%clk 0:03:14.6]} 14... Ng4 {[%clk 0:03:59.7]} 15.
Rf1 {[%clk 0:03:00.1]} 15... Nxh2 {[%clk 0:03:57.5]} 16. Rh1 {[%clk 0:02:59.7]}
16... Ng4 {[%clk 0:03:56.2]} 17. Rf1 {[%clk 0:02:59]} 17... Rfd8 {[%clk
0:03:50.3]} 18. e3 {[%clk 0:02:56.7]} 18... Bxb3+ {[%clk 0:03:43.6]} 19. Ke2
{[%clk 0:02:53.1]} 19... Bc2 {[%clk 0:03:39.9]} 20. Rh1 {[%clk 0:02:37.7]} 20...
Bd3+ {[%clk 0:03:37.7]} 21. Kf3 {[%clk 0:02:19.6]} 21... Nce5+ {[%clk
0:03:35.1]} 22. Kf4 {[%clk 0:02:18.9]} 22... f6 {[%clk 0:03:29]} 23. Be4 {[%clk
0:02:09.6]} 23... g5+ {[%clk 0:03:26.6]} 24. Kf5 {[%clk 0:02:07.7]} 24... Bb5
{[%clk 0:02:58]} 25. Bxb7 {[%clk 0:01:53.3]} 25... Bd7+ {[%clk 0:02:40.1]} 26.
Ke4 {[%clk 0:01:52.7]} 26... Ra4+ {[%clk 0:02:38.1]} 27. Kd5 {[%clk 0:01:52]}
27... Bc6+ {[%clk 0:02:34.9]} 28. Ke6 {[%clk 0:01:50.5]} 28... Bxb7 {[%clk
0:02:27.4]} 29. Nb3 {[%clk 0:01:46.1]} 29... Bc8+ {[%clk 0:02:22.2]} 30. Ke7
{[%clk 0:01:43.9]} 30... Rd7+ {[%clk 0:02:20.6]} 31. Ke8 {[%clk 0:01:42.8]}
31... f5 {[%clk 0:02:15.2]} 32. Bb2 {[%clk 0:01:41.1]} 32... Nf6# {[%clk
0:02:13.6]} 0-1